bitfinex/quotes_SOLUSD_20250206
["timestamp","ask_amount","ask_price","bid_price","bid_amount"]
[1738858306722,34.12300223,191.84,191.78,0.12549]
[1738858307222,34.12300223,191.83,191.76,34.12300223]
[1738858307440,34.12300223,191.82,191.75,39.68600223]
[1738858307598,34.12300223,191.81,191.75,5.563]
[1738858308300,34.12300223,191.77,191.75,0.063]
[1738858308617,34.12300223,191.76,191.75,0.063]
[1738858308797,20.0,191.76,191.75,0.063]
[1738858308993,5.2137,191.8,191.75,0.063]
[1738858309198,34.12300223,191.8,191.75,0.063]
[1738858310399,34.12300223,191.79,191.75,0.063]
[1738858310618,34.12300223,191.76,191.75,0.063]
[1738858310804,34.12300223,191.77,191.75,0.063]
[1738858310998,34.12300223,191.81,191.75,0.063]
[1738858311620,34.12300223,191.8,191.75,0.063]
[1738858312421,0.10074097,191.76,191.75,0.18849]
[1738858312627,0.10074097,191.76,191.75,53.06393076]
[1738858314612,0.10074097,191.76,191.75,0.063]
[1738858316234,0.10074097,191.76,191.75,39.52659223]
[1738858317013,0.10074097,191.76,191.75,0.063]
[1738858317629,39.4385432,191.76,191.75,0.063]
[1738858317941,0.10074097,191.76,191.75,0.063]
[1738858318238,39.4385432,191.76,191.75,0.063]
[1738858318535,20.10074097,191.76,191.75,0.063]
[1738858319437,0.10074097,191.76,191.75,0.063]
[1738858319651,34.2237432,191.76,191.75,0.063]
[1738858320228,0.10074097,191.76,191.75,0.063]
[1738858320432,122.51657208,191.76,191.75,0.063]
[1738858320635,121.5385432,191.76,191.75,0.063]
[1738858321329,121.6640332,191.76,191.75,0.063]
[1738858321532,20.0,191.73,191.71,0.063]
[1738858321711,35.10133626,191.72,191.71,0.063]
[1738858322506,39.33890223,191.72,191.71,0.063]
[1738858322934,34.12300223,191.73,191.71,0.063]
[1738858323142,39.33850223,191.74,191.71,0.063]
[1738858323507,34.12300223,191.73,191.71,0.063]
[1738858324042,5.2155,191.74,191.71,0.063]
[1738858324043,34.12300223,191.72,191.71,0.063]
[1738858324247,34.12300223,191.73,191.71,0.063]
[1738858325008,34.12300223,191.72,191.71,0.063]
[1738858325240,5.2157,191.73,191.71,0.063]
[1738858325241,34.12300223,191.73,191.71,0.063]
[1738858325639,0.10074097,191.76,191.72,34.12300223]
[1738858325848,0.10074097,191.76,191.75,47.66034076]
[1738858326019,0.10074097,191.76,191.75,47.91132076]
[1738858326631,0.10074097,191.76,191.75,53.12642076]
[1738858326848,4.097e-05,191.76,191.75,53.25191076]
[1738858327719,4.097e-05,191.76,191.75,53.12642076]
[1738858328725,4.097e-05,191.76,191.75,39.46359223]
[1738858329042,4.097e-05,191.76,191.72,39.33890223]
[1738858329208,4.097e-05,191.76,191.72,34.12300223]
[1738858329412,4.097e-05,191.76,191.74,0.12549]
[1738858330046,4.097e-05,191.76,191.71,0.063]
[1738858330415,34.1230432,191.76,191.71,0.063]
[1738858330615,34.12300223,191.73,191.71,0.063]
[1738858330813,5.2156,191.74,191.71,0.063]
[1738858330814,34.12300223,191.72,191.71,0.063]
[1738858331154,34.12300223,191.73,191.71,0.063]
[1738858331949,20.0,191.72,191.71,0.063]
[1738858332146,54.12300223,191.72,191.71,0.063]
[1738858332447,54.23455849,191.72,191.71,0.063]
[1738858332828,0.11155626,191.72,191.71,0.063]
[1738858334937,0.11155626,191.72,191.71,0.43947]
[1738858335251,0.11155626,191.72,191.71,48.09981076]
[1738858336233,0.11155626,191.72,191.71,47.97432076]
[1738858336643,0.11155626,191.72,191.71,0.063]
[1738858337138,0.11155626,191.72,191.71,47.72334076]
[1738858337349,0.11155626,191.72,191.71,48.09981076]
[1738858337655,5.626e-05,191.72,191.71,49.09981076]
[1738858337944,8.247e-05,191.73,191.72,13.78831853]
[1738858338151,8.247e-05,191.73,191.72,53.78310256]
[1738858338348,8.247e-05,191.73,191.72,53.39132076]
[1738858338752,8.247e-05,191.73,191.72,40.15994119]
[1738858338928,8.247e-05,191.73,191.72,34.67994119]
[1738858339121,8.247e-05,191.73,191.72,39.89584119]
[1738858339335,8.247e-05,191.73,191.72,5.34139]
[1738858339649,8.247e-05,191.73,191.72,26.23301266]
[1738858340521,8.247e-05,191.73,191.72,0.12549]
[1738858340753,8.247e-05,191.73,191.71,0.063]
[1738858340956,20.89170513,191.73,191.71,0.063]
[1738858341645,40.89162266,191.72,191.71,0.063]
[1738858342121,41.8698927,191.72,191.71,0.063]
[1738858342326,41.9953827,191.72,191.71,0.063]
[1738858342547,68.10290536,191.72,191.71,0.063]
[1738858342729,47.2112827,191.72,191.71,0.063]
[1738858343962,5.24568247,191.73,191.71,0.063]
[1738858344465,0.03008247,191.73,191.71,0.063]
[1738858344763,0.03008247,191.73,191.72,21.25098]
[1738858344764,8.247e-05,191.73,191.72,21.25098]
[1738858345062,8.247e-05,191.73,191.72,34.30562265]
[1738858345425,8.59e-06,191.74,191.73,13.78831853]
[1738858345621,8.59e-06,191.74,191.73,26.23271266]
[1738858345836,8.59e-06,191.74,191.73,5.34109]
[1738858346057,8.59e-06,191.74,191.73,39.89554119]
[1738858346233,8.59e-06,191.74,191.73,39.77005119]
[1738858346641,8.59e-06,191.74,191.73,52.83037626]
[1738858346856,8.59e-06,191.74,191.73,39.29303773]
[1738858347246,8.59e-06,191.74,191.71,34.01494773]
[1738858347445,8.59e-06,191.74,191.71,0.063]
[1738858348353,8.59e-06,191.74,191.72,33.95194773]
[1738858348947,8.59e-06,191.74,191.71,34.14043773]
[1738858349264,8.59e-06,191.74,191.73,47.74026626]
[1738858349570,3.205e-05,191.76,191.75,39.00341853]
[1738858349745,3.205e-05,191.76,191.75,73.34666234]
[1738858350153,5.539e-05,191.77,191.76,13.91380853]
[1738858350477,5.539e-05,191.77,191.76,47.86575626]
[1738858351686,5.539e-05,191.77,191.76,53.08055626]
[1738858352052,5.539e-05,191.77,191.76,52.95506626]
[1738858352277,0.09877592,191.77,191.76,52.95506626]
[1738858352480,0.09877592,191.77,191.76,39.41772773]
[1738858353343,0.09877592,191.77,191.76,52.95506626]
[1738858353652,0.09872053,191.77,191.76,53.08055626]
[1738858353851,2.053e-05,191.77,191.76,54.08055626]
[1738858355087,2.053e-05,191.77,191.76,53.08055626]
[1738858355701,2.053e-05,191.77,191.76,39.62043773]
[1738858355889,0.03002053,191.77,191.76,10.88329]
[1738858356101,0.03002053,191.77,191.76,5.543]
[1738858356406,0.03002053,191.77,191.76,0.063]
[1738858356978,33.98196826,191.77,191.76,0.063]
[1738858358307,0.03002053,191.77,191.76,34.01494773]
[1738858358509,0.03002053,191.77,191.76,47.80326626]
[1738858358807,0.10036213,191.8,191.79,20.25098]
[1738858358987,7.186e-05,191.81,191.8,0.37647]
[1738858359187,6.48e-05,191.82,191.81,13.91380853]
[1738858359392,6.48e-05,191.82,191.81,19.78462409]
[1738858359686,0.03,191.92,191.89,0.12549]
[1738858359895,0.03,191.92,191.91,34.20292773]
[1738858360379,0.03,191.92,191.91,39.16264773]
[1738858360916,0.03,191.92,191.91,39.28813773]
[1738858362105,0.03,191.92,191.89,33.95194773]
[1738858362677,0.03,191.92,191.88,34.07743773]
[1738858362877,20.03,191.92,191.87,5.48]
[1738858363099,53.98194773,191.92,191.87,5.48]
[1738858363304,20.03,191.92,191.87,39.43194773]
[1738858363481,0.03,191.92,191.9,33.95194773]
[1738858363678,0.03,191.92,191.91,33.95194773]
[1738858363901,0.03,191.92,191.9,33.95194773]
[1738858364206,0.03,191.92,191.89,0.12549]
[1738858364407,0.03,191.92,191.88,33.95194773]
[1738858364591,0.03,191.92,191.87,5.48]
[1738858364990,0.03,191.92,191.87,39.43194773]
[1738858366299,0.03,191.92,191.89,33.95194773]
[1738858366806,0.03,191.92,191.87,44.76923773]
[1738858367303,33.95194773,191.9,191.83,33.95194773]
[1738858367606,53.95194773,191.91,191.84,39.16454773]
[1738858367797,20.0,191.91,191.84,39.16454773]
[1738858368392,20.0,191.91,191.85,33.95194773]
[1738858368590,20.0,191.91,191.86,34.07743773]
[1738858368796,20.0,191.91,191.87,33.95194773]
[1738858370093,20.0,191.91,191.85,33.95194773]
[1738858370311,59.16274773,191.91,191.84,33.95194773]
[1738858370519,33.95194773,191.89,191.82,33.95194773]
[1738858371197,32.75818758,191.91,191.83,33.95194773]
[1738858371198,33.95194773,191.9,191.83,33.95194773]
[1738858371401,26.5701,191.91,191.86,33.95194773]
[1738858371713,0.03,191.92,191.88,33.95194773]
[1738858372098,0.03,191.92,191.91,33.95194773]
[1738858372414,0.12832476,191.92,191.91,33.95194773]
[1738858372780,0.12832476,191.92,191.91,34.07743773]
[1738858374016,0.12832476,191.92,191.91,39.28813773]
[1738858374215,0.12832476,191.92,191.89,33.95194773]
[1738858374514,0.12832476,191.92,191.91,33.95194773]
[1738858374884,0.12832476,191.92,191.91,34.07743773]
[1738858376106,0.12832476,191.92,191.91,39.28813773]
[1738858376304,0.12832476,191.92,191.9,33.95194773]
[1738858376507,0.12832476,191.92,191.91,33.95194773]
[1738858376695,0.12832476,191.92,191.91,34.63680835]
[1738858377110,0.12832476,191.92,191.91,35.02682963]
[1738858377314,0.12832476,191.92,191.91,35.15231963]
[1738858377531,2.476e-05,191.92,191.91,35.15231963]
[1738858377698,7.464e-05,191.95,191.94,33.91380853]
[1738858377898,7.464e-05,191.95,191.94,55.15176313]
[1738858378099,7.464e-05,191.95,191.94,60.36166313]
[1738858378729,7.464e-05,191.95,191.94,39.84670835]
[1738858378896,7.464e-05,191.95,191.94,26.30936982]
[1738858379224,7.464e-05,191.95,191.94,39.84670835]
[1738858379430,7.464e-05,191.95,191.94,40.36203661]
[1738858380131,7.73e-06,191.98,191.97,39.12290853]
[1738858380304,7.73e-06,191.98,191.97,68.02006029]
[1738858380813,7.73e-06,192.01,191.97,66.63109835]
[1738858381020,0.03,192.12,192.02,13.91380853]
[1738858381316,0.03,192.12,192.06,13.78831853]
[1738858381493,0.03,192.12,192.07,0.12549]
[1738858381695,0.03,192.12,192.11,13.78831853]
[1738858381914,0.03,192.12,192.11,40.09680835]
[1738858382223,1.6554,192.23,192.11,45.17661835]
[1738858382224,20.84848982,192.2,192.11,45.17661835]
[1738858382433,20.84848982,192.19,192.12,20.84848982]
[1738858382791,33.82301901,192.17,192.11,5.46]
[1738858383130,33.82301901,192.12,192.11,5.46]
[1738858383541,33.82301901,192.12,192.04,5.2069]
[1738858383542,33.82301901,192.12,192.04,33.82301901]
[1738858383724,33.82301901,192.12,192.06,0.12549]
[1738858384031,33.82301901,192.12,192.05,33.82301901]
[1738858384032,33.82301901,192.11,192.04,33.82301901]
[1738858384400,33.82301901,192.1,192.03,39.28301901]
[1738858384818,39.02841901,192.11,192.04,33.82301901]
[1738858385218,33.82301901,192.1,192.03,33.82301901]
[1738858385403,5.2054,192.11,192.0,39.28301901]
[1738858385404,33.82301901,192.07,192.0,39.28301901]
[1738858385616,33.82301901,192.08,192.01,33.82301901]
[1738858385808,33.82301901,192.08,192.02,0.25098]
[1738858386014,5.2054,192.11,192.05,33.82301901]
[1738858386215,39.02841901,192.11,192.04,33.82301901]
[1738858386408,39.02841901,192.11,192.02,33.82301901]
[1738858386409,33.82301901,192.09,192.02,33.82301901]
[1738858387342,33.82301901,192.06,191.99,33.82301901]
[1738858387636,6.0264,192.1,192.04,33.82301901]
[1738858388045,20.0,192.07,192.04,33.82301901]
[1738858388217,20.0,192.07,192.02,33.82301901]
[1738858388404,1.6296,192.12,192.05,0.25098]
[1738858388746,11.4722,192.16,192.08,0.12549]
[1738858388913,6.2681,192.16,192.08,0.12549]
[1738858389440,6.2681,192.16,192.11,33.82301901]
[1738858389613,40.60301901,192.19,192.12,33.82301901]
[1738858390030,6.78,192.19,192.12,33.82301901]
[1738858390339,33.82301901,192.17,192.1,33.82301901]
[1738858390838,33.82301901,192.14,192.06,33.82301901]
[1738858391040,33.82301901,192.11,192.04,39.03021901]
[1738858391204,33.82301901,192.13,192.06,33.82301901]
[1738858391620,33.82301901,192.12,192.05,33.82301901]
[1738858392151,33.82301901,192.14,192.07,33.82301901]
[1738858392330,0.09412326,192.08,192.05,0.25098]
[1738858392532,0.09412326,192.08,192.05,13.66282853]
[1738858393049,0.09412326,192.08,192.03,10.6675]
[1738858393354,0.09412326,192.08,192.04,13.78831853]
[1738858393718,0.09412326,192.08,192.03,5.2075]
[1738858394139,0.09412326,192.08,192.05,33.82301901]
[1738858394345,0.09412326,192.08,192.03,39.03051901]
[1738858394644,33.91714227,192.08,192.01,33.82301901]
[1738858395669,39.12334227,192.08,192.01,33.82301901]
[1738858396332,39.12334227,192.08,192.01,39.03091901]
[1738858398023,33.82301901,192.06,191.99,39.03161901]
[1738858398230,33.82301901,192.07,192.0,33.82301901]
[1738858398547,39.12334227,192.08,192.01,33.82301901]
[1738858400154,39.12334227,192.08,192.01,39.03101901]
[1738858400656,33.82301901,192.07,192.01,39.03101901]
[1738858401956,33.82301901,192.07,191.94,8.81699785]
[1738858401957,20.0,192.05,191.94,6.1438]
[1738858402158,33.82301901,192.04,191.97,33.82301901]
[1738858402335,83.07645507,192.07,191.99,33.82301901]
[1738858402336,33.82301901,192.06,191.99,33.82301901]
[1738858402539,115.92301901,192.07,192.0,33.82301901]
[1738858402753,115.92301901,192.07,191.99,33.82301901]
[1738858402754,33.82301901,192.05,191.99,33.82301901]
[1738858402964,20.84101743,192.03,191.97,0.063]
[1738858403183,20.84101743,192.02,191.97,0.063]
[1738858403332,20.84101743,192.04,191.98,20.84101743]
[1738858403534,40.84101743,192.04,191.98,20.84101743]
[1738858403944,46.04831743,192.04,191.97,26.11311743]
[1738858404359,82.1,192.07,192.01,20.84101743]
[1738858404563,82.1,192.07,192.03,20.84101743]
[1738858405240,82.1,192.07,191.98,0.37647]
[1738858405241,82.1,192.07,192.04,20.84101743]
[1738858405441,82.1,192.07,192.05,20.84101743]
[1738858405638,0.09412326,192.08,192.05,20.84101743]
[1738858405832,0.09412326,192.08,192.04,20.84101743]
[1738858406046,0.09412326,192.08,192.03,20.84101743]
[1738858407063,0.09412326,192.08,192.04,20.84101743]
[1738858407452,0.09412326,192.08,192.03,20.84101743]
[1738858408163,0.09412326,192.08,192.03,26.04841743]
[1738858408867,0.09412326,192.08,192.04,20.84101743]
[1738858409037,0.09412326,192.08,192.03,26.04841743]
[1738858410349,0.09412326,192.08,192.03,5.2074]
[1738858410543,20.93514069,192.08,192.03,5.2074]
[1738858410949,0.09412326,192.08,192.03,5.2074]
[1738858411454,0.09412326,192.08,192.05,20.84101743]
[1738858411652,0.09412326,192.08,192.07,20.84101743]
[1738858412056,0.09412326,192.08,192.06,20.84101743]
[1738858412369,0.18910678,192.08,192.06,5.2067]
[1738858412566,0.18910678,192.08,192.03,34.11069743]
[1738858412758,0.18910678,192.08,192.04,5.2072]
[1738858413357,21.03012421,192.08,192.03,5.2074]
[1738858413873,0.09498352,192.08,192.03,5.2074]
[1738858414164,20.84101743,192.06,192.01,5.2078]
[1738858414357,20.84101743,192.06,192.0,5.2083]
[1738858414565,20.93600095,192.08,192.01,20.84101743]
[1738858414766,26.14210095,192.08,192.01,20.84101743]
[1738858414970,20.93600095,192.08,192.01,20.84101743]
[1738858415159,0.09498352,192.08,192.02,20.84101743]
[1738858415470,20.84101743,192.06,192.0,5.2083]
[1738858415775,5.30118352,192.08,191.98,5.2088]
[1738858415776,20.84101743,192.03,191.98,5.2088]
[1738858416169,6.2775948,192.08,191.97,5.272]
[1738858416170,20.84101743,192.02,191.97,5.272]
[1738858416646,20.84101743,192.01,191.97,0.063]
[1738858416848,20.9767238,192.0,191.97,0.063]
[1738858417171,20.84101743,191.98,191.97,0.063]
[1738858417350,20.84101743,191.99,191.97,0.063]
[1738858418345,20.0,192.0,191.97,0.063]
[1738858418975,20.84101743,191.99,191.97,0.063]
[1738858419153,20.84101743,191.98,191.97,0.063]
[1738858420245,40.84101743,191.99,191.97,0.063]
[1738858420445,40.84101743,191.98,191.97,0.063]
[1738858420862,20.84101743,192.0,191.97,0.063]
[1738858421851,20.84101743,192.01,191.97,0.063]
[1738858422076,82.1,192.07,191.98,20.84101743]
[1738858422077,20.84101743,192.05,191.98,20.84101743]
[1738858422372,20.84101743,192.06,191.99,20.84101743]
[1738858422573,82.1,192.07,192.01,20.84101743]
[1738858422763,0.09498352,192.08,192.02,20.84101743]
[1738858423653,20.93600095,192.08,192.02,20.84101743]
[1738858423974,20.84101743,192.03,191.97,0.063]
[1738858424277,20.84101743,192.04,191.97,20.90401743]
[1738858424461,20.84101743,192.04,191.98,5.2088]
[1738858424783,20.84101743,192.04,191.98,26.04981743]
[1738858424959,5.207,192.05,191.98,26.04981743]
[1738858424960,20.84101743,192.05,191.98,26.04981743]
[1738858425157,20.0,192.04,192.0,20.84101743]
[1738858425698,0.09498352,192.08,191.98,5.2088]
[1738858425699,0.09498352,192.08,192.02,20.84101743]
[1738858426562,20.0,192.07,192.03,20.84101743]
[1738858427760,0.09498352,192.08,192.06,20.84101743]
[1738858428069,0.09498352,192.08,192.07,20.96650743]
[1738858428488,0.09498352,192.08,192.07,26.17290743]
[1738858428873,0.09498352,192.08,192.07,26.04741743]
[1738858429071,0.09498352,192.08,192.05,20.84101743]
[1738858429275,0.09498352,192.08,192.03,20.84101743]
[1738858429474,0.09498352,192.08,192.02,26.11171743]
[1738858429886,26.14220095,192.08,192.02,0.063]
[1738858430091,20.93600095,192.08,192.02,5.2707]
[1738858430303,26.14230095,192.08,192.02,0.063]
[1738858430587,20.93600095,192.08,192.02,5.2707]
[1738858431578,20.93600095,192.08,192.02,26.11171743]
[1738858431579,0.09498352,192.08,192.02,26.11171743]
[1738858431978,20.84101743,192.07,192.02,0.063]
[1738858432384,0.10716276,192.03,192.02,0.063]
[1738858433292,20.94818019,192.03,192.02,0.063]
[1738858433967,26.15568019,192.03,192.02,0.063]
[1738858436982,26.28117019,192.03,192.02,0.063]
[1738858437896,20.0,192.0,191.97,0.063]
[1738858438069,20.84101743,191.98,191.97,0.063]
[1738858438485,20.84101743,191.99,191.97,0.063]
[1738858438770,5.2088,191.98,191.97,0.063]
[1738858438968,20.84101743,191.99,191.97,0.063]
[1738858439171,46.04931743,192.0,191.97,0.063]
[1738858439396,40.84101743,192.0,191.97,0.063]
[1738858440567,20.94818019,192.03,191.97,0.063]
[1738858442583,20.0,192.01,191.97,20.90401743]
[1738858442778,0.10716276,192.03,191.98,20.84101743]
[1738858442987,0.10716276,192.03,192.02,20.84101743]
[1738858443287,0.10716276,192.03,192.02,34.50384596]
[1738858443477,0.10843108,192.04,192.03,0.25098]
[1738858443478,9.384e-05,192.04,192.03,0.25098]
[1738858443675,9.384e-05,192.04,192.03,20.96650743]
[1738858443892,9.384e-05,192.04,192.03,21.35512304]
[1738858444471,9.384e-05,192.04,192.03,35.01795157]
[1738858444801,9.384e-05,192.04,192.03,39.83683596]
[1738858445006,8.524e-05,192.05,192.04,1.25098]
[1738858445297,8.524e-05,192.05,192.04,22.09199743]
[1738858446016,3.884e-05,192.06,192.04,35.75482596]
[1738858446190,83.6131,192.22,192.07,20.0]
[1738858446191,0.01127818,192.08,192.07,20.0]
[1738858446388,7.607e-05,192.1,192.09,20.0]
[1738858446702,4.809e-05,192.11,192.1,13.78831853]
[1738858446998,4.809e-05,192.11,192.1,55.47035339]
[1738858447302,4.809e-05,192.11,192.1,20.96650743]
[1738858447714,4.809e-05,192.11,192.1,20.84101743]
[1738858449003,4.809e-05,192.11,192.1,26.04661743]
[1738858449201,4.809e-05,192.11,192.1,26.17210743]
[1738858449905,4.809e-05,192.11,192.1,26.04661743]
[1738858450676,4.809e-05,192.11,192.08,20.84101743]
[1738858450880,4.809e-05,192.11,192.06,20.84101743]
[1738858451187,4.809e-05,192.11,192.07,20.84101743]
[1738858451395,4.809e-05,192.11,192.1,20.84101743]
[1738858452516,0.10256206,192.11,192.1,20.84101743]
[1738858452689,0.10256206,192.11,192.09,20.84101743]
[1738858453012,0.10256206,192.11,192.1,20.84101743]
[1738858453783,0.10251397,192.11,192.1,20.84101743]
[1738858454614,0.10251397,192.11,192.1,21.09199743]
[1738858454814,0.10251397,192.11,192.1,39.70944596]
[1738858454988,0.10251397,192.11,192.1,26.17210743]
[1738858455321,1.397e-05,192.11,192.1,26.04661743]
[1738858455520,0.09909354,192.14,192.11,13.91380853]
[1738858455824,9.46e-05,192.16,192.13,43.11420853]
[1738858456020,9.46e-05,192.16,192.15,13.78831853]
[1738858456236,0.03,192.31,192.18,0.37647]
[1738858456516,0.03,192.31,192.29,20.84101743]
[1738858456725,0.03,192.31,192.28,20.84101743]
[1738858457311,0.03,192.31,192.27,20.84101743]
[1738858457620,0.03,192.31,192.26,20.84101743]
[1738858457820,0.03,192.31,192.24,5.2018]
[1738858457821,0.03,192.31,192.25,20.84101743]
[1738858458417,0.03,192.31,192.27,20.84101743]
[1738858459032,0.03,192.31,192.27,26.04181743]
[1738858459197,0.03,192.31,192.28,20.84101743]
[1738858459934,0.03,192.31,192.27,26.04181743]
[1738858460239,20.87101743,192.31,192.24,20.84101743]
[1738858460532,20.84101743,192.3,192.23,26.04281743]
[1738858461026,26.04121743,192.3,192.23,20.84101743]
[1738858461320,20.84101743,192.29,192.22,20.84101743]
[1738858461512,0.03,192.31,192.26,20.84101743]
[1738858461897,0.03,192.31,192.27,20.84101743]
[1738858462310,20.87101743,192.31,192.21,5.2024]
[1738858462618,20.84101743,192.29,192.22,20.84101743]
[1738858462819,20.84101743,192.3,192.23,20.84101743]
[1738858463417,20.0,192.29,192.24,20.84101743]
[1738858464026,20.0,192.29,192.2,5.2029]
[1738858464027,40.84101743,192.28,192.2,5.2029]
[1738858464203,40.84101743,192.28,192.21,20.84101743]
[1738858464407,40.84101743,192.28,192.22,20.84101743]
[1738858464704,40.84101743,192.28,192.21,20.84101743]
[1738858464902,20.84101743,192.27,192.2,26.04391743]
[1738858465103,20.84101743,192.28,192.21,20.84101743]
[1738858465301,108.14121743,192.3,192.23,20.84101743]
[1738858465510,20.84101743,192.29,192.22,20.84101743]
[1738858465919,108.14121743,192.3,192.23,20.84101743]
[1738858466097,20.84101743,192.29,192.22,20.84101743]
[1738858466419,108.14121743,192.3,192.23,20.84101743]
[1738858466991,20.84101743,192.29,192.22,20.84101743]
[1738858467197,82.1,192.3,192.24,20.84101743]
[1738858467415,0.03,192.31,192.26,20.84101743]
[1738858467904,20.0,192.3,192.26,20.84101743]
[1738858468624,20.0,192.3,192.25,26.04241743]
[1738858468827,0.03,192.31,192.25,20.84101743]
[1738858469034,0.03,192.31,192.26,20.84101743]
[1738858469198,0.03,192.31,192.27,20.84101743]
[1738858469533,0.03,192.31,192.29,20.84101743]
[1738858469818,0.03,192.31,192.3,20.84101743]
[1738858470524,0.03,192.31,192.3,26.16670743]
[1738858471202,0.03,192.31,192.3,39.57855596]
[1738858471403,14.70188339,192.41,192.31,13.53733853]
[1738858471619,14.70188339,192.41,192.3,73.29458339]
[1738858471620,6.1867,192.43,192.38,20.84101743]
[1738858472299,0.09880686,192.39,192.37,20.84101743]
[1738858472715,0.09880686,192.39,192.38,20.84101743]
[1738858473130,0.09880686,192.39,192.38,35.01479694]
[1738858473420,8.404e-05,192.4,192.39,13.91380853]
[1738858473601,8.404e-05,192.4,192.39,55.59584339]
[1738858474218,8.404e-05,192.4,192.39,55.98071585]
[1738858474631,8.404e-05,192.4,192.39,56.98071585]
[1738858474815,8.404e-05,192.4,192.39,35.01420842]
[1738858475125,8.404e-05,192.4,192.39,40.21190842]
[1738858475496,8.404e-05,192.4,192.39,39.96092842]
[1738858475701,8.404e-05,192.4,192.39,39.57605596]
[1738858476099,8.404e-05,192.4,192.39,26.16420743]
[1738858476528,8.404e-05,192.4,192.39,39.57605596]
[1738858477436,8.404e-05,192.4,192.39,39.96123529]
[1738858478533,8.404e-05,192.4,192.39,39.57605596]
[1738858479538,8.404e-05,192.4,192.39,26.03871743]
[1738858479920,8.404e-05,192.4,192.39,39.57605596]
[1738858480123,8.404e-05,192.4,192.39,39.82703596]
[1738858481205,0.10952856,192.42,192.4,13.91380853]
[1738858481406,0.10952856,192.42,192.41,34.763125]
[1738858482196,0.10952856,192.42,192.41,34.37835596]
[1738858482632,0.10952856,192.42,192.41,34.62933596]
[1738858483033,0.10952856,192.42,192.41,35.01424837]
[1738858483209,0.10952856,192.42,192.41,26.16370743]
[1738858484238,0.10952856,192.42,192.41,26.03821743]
[1738858484532,0.10952856,192.42,192.4,31.45841743]
[1738858484702,0.10952856,192.42,192.41,20.84101743]
[1738858485422,0.10952856,192.42,192.41,26.03821743]
[1738858487053,0.10952856,192.42,192.4,20.84101743]
[1738858487629,0.10952856,192.42,192.41,20.84101743]
[1738858488741,0.10952856,192.42,192.41,12.96594503]
[1738858489036,0.10952856,192.42,192.41,18.16314503]
[1738858489330,0.10952856,192.42,192.41,18.28863503]
[1738858489540,2.856e-05,192.42,192.41,18.28863503]
[1738858489739,4.85e-06,192.43,192.42,13.53733853]
[1738858489938,4.85e-06,192.43,192.42,26.75426356]
[1738858490145,9.175e-05,192.45,192.44,13.78831853]
[1738858490447,6.36e-06,192.47,192.46,13.78831853]
[1738858490655,9.838e-05,192.48,192.46,27.01304878]
[1738858490857,9.838e-05,192.51,192.48,13.91380853]
[1738858491013,9.838e-05,192.51,192.5,45.04049859]
[1738858491216,0.03,192.62,192.51,13.91380853]
[1738858491562,0.03,192.62,192.59,12.96594503]
[1738858491746,20.03,192.62,192.59,12.96594503]
[1738858491939,0.03,192.62,192.59,12.96594503]
[1738858492245,0.09595259,192.6,192.57,12.96594503]
[1738858492442,0.09595259,192.6,192.58,12.96594503]
[1738858492655,0.09595259,192.6,192.57,20.71408123]
[1738858492832,0.09595259,192.6,192.58,20.71408123]
[1738858493030,0.09595259,192.6,192.59,20.71408123]
[1738858493231,0.09595259,192.6,192.59,25.90638123]
[1738858493547,0.09595259,192.6,192.59,39.82018976]
[1738858493548,5.259e-05,192.6,192.59,39.82018976]
[1738858493855,0.10731417,192.61,192.6,13.91380853]
[1738858494021,6.375e-05,192.62,192.6,14.17098941]
[1738858494356,6.231e-05,192.64,192.63,33.91380853]
[1738858494521,2.084e-05,192.66,192.64,13.91380853]
[1738858494720,2.084e-05,192.66,192.65,35.00999582]
[1738858494920,9.487e-05,192.67,192.66,13.91380853]
[1738858495117,20.71408123,192.83,192.68,25.1899]
[1738858495316,20.71408123,192.83,192.76,20.71408123]
[1738858495517,20.71408123,192.84,192.77,20.71408123]
[1738858495730,20.71408123,192.85,192.78,20.71408123]
[1738858495937,8.95152447,192.89,192.8,20.71408123]
[1738858495938,20.71408123,192.87,192.8,20.71408123]
[1738858496330,33.87738123,192.89,192.81,20.71408123]
[1738858496533,6.1831,192.94,192.84,20.71408123]
[1738858496851,6.3145,192.95,192.81,13.91380853]
[1738858497154,6.3145,192.95,192.88,20.71408123]
[1738858497155,27.02858123,192.95,192.88,20.71408123]
[1738858497455,5.1818,192.99,192.89,13.66282853]
[1738858497664,20.71408123,192.96,192.9,20.71408123]
[1738858497825,20.71408123,192.96,192.91,0.12549]
[1738858498161,20.71408123,192.97,192.91,0.12549]
[1738858498346,20.71408123,192.97,192.87,5.31009]
[1738858498347,20.71408123,192.98,192.87,18.1466]
[1738858498548,20.71408123,192.94,192.87,20.71408123]